bitfinex-derivatives/quotes_BNBF0:USTF0_20250220
["timestamp","ask_amount","ask_price","bid_price","bid_amount"]
[1740036785135,0.59082357,649.77,647.9,0.30868961]
[1740036785337,0.28302235,649.76,647.9,0.30868961]
[1740036787135,0.28301404,649.75,647.9,0.30868961]
[1740036787335,0.28301404,649.74,647.9,0.30868961]
[1740036787536,0.28301404,649.73,647.9,0.30868961]
[1740036787736,0.28301404,649.72,647.9,0.30868961]
[1740036787937,0.28301404,649.71,647.9,0.30868961]
[1740036788134,0.28301404,649.76,647.9,0.30868961]
[1740036788331,0.28301404,649.75,647.9,0.30868961]
[1740036788530,0.28301404,649.76,647.9,0.30868961]
[1740036788737,0.28301404,649.75,647.9,0.30868961]
[1740036788934,0.28301404,649.74,647.9,0.30868961]
[1740036789134,0.28301404,649.73,647.9,0.30868961]
[1740036789331,0.28301404,649.72,647.9,0.30868961]
[1740036789536,0.28301404,649.71,647.9,0.30868961]
[1740036789739,0.28301404,649.76,647.9,0.30868961]
[1740036789941,0.28301404,649.75,647.9,0.30868961]
[1740036790139,0.28301404,649.74,647.9,0.30868961]
[1740036790339,0.28301404,649.76,647.9,0.30868961]
[1740036790539,0.28301404,649.75,647.9,0.30868961]
[1740036790733,0.28301404,649.74,647.9,0.30868961]
[1740036790933,0.28301404,649.73,647.9,0.30868961]
[1740036791241,0.28301404,649.72,647.9,0.30868961]
[1740036791539,0.28301404,649.71,647.9,0.30868961]
[1740036791839,0.28301404,649.7,647.9,0.30868961]
[1740036792037,0.30780122,649.77,647.9,0.30868961]
[1740036792240,0.2830143,649.76,647.9,0.30868961]
[1740036794435,0.30780122,649.77,647.9,0.30868961]
[1740036796739,1.15702844,650.47,647.9,0.30868961]
[1740036796939,0.30747943,650.45,647.9,0.30868961]
[1740036797140,0.28288837,650.44,647.9,0.30868961]
[1740036797338,0.30749361,650.42,647.9,0.30868961]
[1740036797642,0.28288837,650.41,647.9,0.30868961]
[1740036797845,0.3075078,650.39,647.9,0.30868961]
[1740036798043,0.28288837,650.38,647.9,0.30868961]
[1740036798242,0.30752198,650.36,647.9,0.30868961]
[1740036798445,0.28288837,650.35,647.9,0.30868961]
[1740036798648,0.30753617,650.33,647.9,0.30868961]
[1740036798842,0.28288837,650.32,647.9,0.30868961]
[1740036799040,0.30755036,650.3,647.9,0.30868961]
[1740036799340,0.28288837,650.29,647.9,0.30868961]
[1740036799546,0.30755982,650.28,647.9,0.30868961]
[1740036799746,0.28288837,650.27,647.9,0.30868961]
[1740036800041,0.59044669,650.26,647.9,0.30868961]
[1740036800243,0.59045142,650.25,647.9,0.30868961]
[1740036800443,0.59045616,650.24,647.9,0.30868961]
[1740036800644,0.59046089,650.23,647.9,0.30868961]
[1740036800843,0.59046562,650.22,647.9,0.30868961]
[1740036801044,0.59047035,650.21,647.9,0.30868961]
[1740036801242,0.59047508,650.2,647.9,0.30868961]
[1740036801445,0.59047981,650.19,647.93,1.15777381]
[1740036801644,0.59048454,650.18,648.04,0.30862292]
[1740036801844,0.59048927,650.17,648.04,0.30862292]
[1740036802045,0.590494,650.16,648.04,0.30862292]
[1740036802245,0.28287742,650.15,648.04,0.30862292]
[1740036804150,0.28287742,650.15,648.05,1.15777381]
[1740036804350,0.28287742,650.15,648.15,0.30857054]
[1740036805546,0.30761658,650.16,648.15,0.30857054]
[1740036805949,0.28281806,650.15,648.15,0.30857054]
[1740036808951,0.30761658,650.16,648.15,0.30857054]
[1740036809153,0.2828235,650.15,648.15,0.30857054]
[1740036812259,0.2828235,650.15,648.16,1.15777381]
[1740036812458,0.28282277,650.14,648.18,0.30855626]
[1740036812657,0.28282277,650.15,648.18,0.30855626]
[1740036812854,0.30761658,650.16,648.18,0.30855626]
[1740036813354,0.28282063,650.15,648.18,0.30855626]
[1740036814160,0.30761658,650.16,648.18,0.30855626]
[1740036834673,1.15702844,651.12,648.18,0.30855626]
[1740036834873,0.3072291,650.98,648.18,0.30855626]
[1740036835076,0.28274934,650.97,648.18,0.30855626]
[1740036835274,0.30728574,650.86,648.18,0.30855626]
[1740036835474,0.28274934,650.85,648.18,0.30855626]
[1740036835974,0.3072999,650.83,648.18,0.30855626]
[1740036836173,0.28274934,650.82,648.18,0.30855626]
[1740036836371,0.30731407,650.8,648.18,0.30855626]
[1740036836575,0.28274934,650.79,648.18,0.30855626]
[1740036836774,0.30732824,650.77,648.18,0.30855626]
[1740036836977,0.28274934,650.76,648.18,0.30855626]
[1740036838477,0.28274934,650.76,648.34,1.15777381]
[1740036840575,0.30732824,650.77,648.34,1.15777381]
[1740036840781,0.28266557,650.76,648.34,1.15777381]
[1740036841279,0.28266557,650.76,648.67,1.15777381]
[1740036841873,0.28269047,650.75,648.67,1.15777381]
[1740036842077,0.28269047,650.74,648.67,1.15777381]
[1740036842273,0.28269047,650.73,648.67,1.15777381]
[1740036842480,0.28269047,650.72,648.67,1.15777381]
[1740036842679,0.28269047,650.76,648.67,1.15777381]
[1740036842879,0.28269047,650.75,648.67,1.15777381]
[1740036843176,0.28269047,650.74,648.52,1.15777381]
[1740036843377,0.28269047,650.76,648.52,1.15777381]
[1740036843574,0.28269047,650.75,648.52,1.15777381]
[1740036843778,0.28269047,650.74,648.52,1.15777381]
[1740036844077,0.28269047,650.73,648.52,1.15777381]
[1740036844281,0.28269047,650.76,648.52,1.15777381]
[1740036844579,0.28269047,650.75,648.52,1.15777381]
[1740036844774,0.28269047,650.76,648.52,1.15777381]
[1740036844978,0.28269047,650.75,648.52,1.15777381]
[1740036845279,0.28267712,650.74,648.52,1.15777381]
[1740036845479,0.28267712,650.73,648.49,1.15777381]
[1740036845680,0.28267712,650.76,648.49,1.15777381]
[1740036845879,0.28267712,650.75,648.49,1.15777381]
[1740036846080,0.28267712,650.74,648.49,1.15777381]
[1740036846281,0.28267712,650.76,648.49,1.15777381]
[1740036846478,0.28267712,650.75,648.49,1.15777381]
[1740036846680,0.28267712,650.74,648.49,1.15777381]
[1740036846881,0.28267712,650.76,648.49,1.15777381]
[1740036847080,0.28267712,650.75,648.49,1.15777381]
[1740036847281,0.28267712,650.74,648.49,1.15777381]
[1740036847581,0.28267712,650.74,648.34,1.60677184]
[1740036847582,0.28267712,650.73,648.48,1.15777381]
[1740036847784,0.28267712,650.76,648.48,1.15777381]
[1740036847978,0.28267712,650.75,648.48,1.15777381]
[1740036848283,0.28267712,650.74,648.48,1.15777381]
[1740036848483,0.28267712,650.76,648.48,1.15777381]
[1740036848783,0.59002074,650.75,648.59,0.30836121]
[1740036848985,0.28268306,650.74,648.59,0.30836121]
[1740036850284,0.30733768,650.75,648.59,0.30836121]
[1740036850480,0.28268854,650.74,648.59,0.30836121]
[1740036852886,0.30735185,650.72,648.59,0.30836121]
[1740036853088,0.28268854,650.71,648.59,0.30836121]
[1740036853781,0.28271267,650.7,648.59,0.30836121]
[1740036853985,0.28271267,650.69,648.59,0.30836121]
[1740036854181,0.28271267,650.68,648.59,0.30836121]
[1740036854389,0.28271267,650.67,648.59,0.30836121]
[1740036854589,0.28271267,650.71,648.59,0.30836121]
[1740036854782,0.28271267,650.7,648.59,0.30836121]
[1740036854988,0.28271267,650.71,648.64,1.15777381]
[1740036855183,0.28271267,650.7,648.64,1.15777381]
[1740036855382,0.30735185,650.72,648.64,1.15777381]
[1740036855583,0.28271821,650.71,648.64,1.15777381]
[1740036856088,0.30736602,650.69,648.74,0.30828991]
[1740036856288,0.28271821,650.68,648.74,0.30828991]
[1740036856589,0.30737547,650.67,648.74,0.30828991]
[1740036856789,0.28271821,650.66,648.74,0.30828991]
[1740036857184,0.28271584,650.65,648.74,0.30828991]
[1740036857384,0.28271584,650.64,648.74,0.30828991]
[1740036857583,0.30737547,650.67,648.74,0.30828991]
[1740036857584,0.28271584,650.66,648.74,0.30828991]
[1740036857891,0.28271584,650.65,648.74,0.30828991]
[1740036858093,0.28271584,650.66,648.74,0.30828991]
[1740036858292,0.28271584,650.65,648.74,0.30828991]
[1740036858491,0.30737547,650.67,648.74,0.30828991]
[1740036858492,0.28271584,650.66,648.74,0.30828991]
[1740036858790,0.59010639,650.65,648.74,0.30828991]
[1740036858991,0.28272147,650.64,648.74,0.30828991]
[1740036859190,0.30739437,650.63,648.74,0.30828991]
[1740036859392,0.28272147,650.62,648.74,0.30828991]
[1740036859687,0.30740382,650.61,648.8,1.15777381]
[1740036859890,0.28272147,650.6,648.8,1.15777381]
[1740036861090,0.28272147,650.6,648.82,0.3082519]
[1740036861287,0.30741327,650.59,648.82,0.3082519]
[1740036861492,0.28272147,650.58,648.82,0.3082519]
[1740036861692,0.30742272,650.57,648.82,0.3082519]
[1740036861887,0.28272147,650.56,648.82,0.3082519]
[1740036862091,0.30742272,650.57,648.86,1.15777381]
[1740036862287,0.28274578,650.56,648.86,1.15777381]
[1740036862491,0.28274578,650.56,648.87,0.30822815]
[1740036862692,0.30743217,650.55,648.87,0.30822815]
[1740036862893,0.28274578,650.54,648.87,0.30822815]
[1740036863089,0.30744162,650.53,648.87,0.30822815]
[1740036863391,0.28274578,650.52,648.87,0.30822815]
[1740036863590,0.30745107,650.51,648.87,0.30822815]
[1740036863796,0.28274578,650.5,648.87,0.30822815]
[1740036863998,0.30746052,650.49,648.87,0.30822815]
[1740036864198,0.28274578,650.48,648.87,0.30822815]
[1740036864391,0.59021103,650.48,648.87,0.30822815]
[1740036864594,0.59021576,650.47,648.87,0.30822815]
[1740036864797,0.59022049,650.46,648.87,0.30822815]
[1740036864996,0.59022521,650.45,648.87,0.30822815]
[1740036865193,0.28274578,650.44,648.87,0.30822815]
[1740036865594,0.28273714,650.43,648.87,0.30822815]
[1740036865794,0.28273714,650.44,648.87,0.30822815]
[1740036866099,0.59022603,650.43,648.87,0.30822815]
[1740036866299,0.59023075,650.42,648.87,0.30822815]
[1740036866499,0.59023548,650.41,648.87,0.30822815]
[1740036866701,0.59024021,650.4,648.87,0.30822815]
[1740036866900,0.59024494,650.39,648.87,0.30822815]
[1740036867100,0.28273714,650.38,648.87,0.30822815]
[1740036867501,0.30751725,650.37,648.87,0.30822815]
[1740036867800,0.28273714,650.36,648.87,0.30822815]
[1740036868001,0.59025912,650.36,648.87,0.30822815]
[1740036868197,0.28273714,650.35,648.87,0.30822815]
[1740036869902,0.30752198,650.36,648.87,0.30822815]
[1740036879509,0.30752198,650.36,648.88,1.15777381]
[1740036879809,0.30752198,650.36,648.9,0.3082139]
[1740036880605,1.15702844,650.78,648.9,0.3082139]
[1740036880802,0.30732824,650.77,648.9,0.3082139]
[1740036883510,0.28261001,650.76,648.9,0.3082139]
[1740036883711,0.30733768,650.75,648.9,0.3082139]
[1740036883906,0.28261988,650.74,648.9,0.3082139]
[1740036884109,0.30734713,650.73,648.9,0.3082139]
[1740036884311,0.28263241,650.72,648.9,0.3082139]
[1740036884705,0.30735657,650.71,648.9,0.3082139]
[1740036886114,0.28263112,650.7,648.9,0.3082139]
[1740036886310,0.30736602,650.69,648.9,0.3082139]
[1740036886709,0.28263591,650.68,648.9,0.3082139]
[1740036886909,0.30737547,650.67,648.9,0.3082139]
[1740036887108,0.28263591,650.66,648.9,0.3082139]
[1740036887815,0.28263481,650.65,648.9,0.3082139]
[1740036888011,0.28263481,650.66,648.9,0.3082139]
[1740036888312,0.28263481,650.65,648.9,0.3082139]
[1740036888514,0.28263481,650.64,648.9,0.3082139]
[1740036888714,0.28263481,650.66,648.9,0.3082139]
[1740036888920,0.59001973,650.65,648.9,0.3082139]
[1740036889218,0.59002445,650.64,648.9,0.3082139]
[1740036889417,0.30739437,650.63,648.9,0.3082139]
[1740036889619,0.28263481,650.62,648.9,0.3082139]
[1740036889818,0.30740382,650.61,648.9,0.3082139]
[1740036890010,0.28263481,650.6,648.9,0.3082139]
[1740036890414,0.30741327,650.59,648.9,0.3082139]
[1740036890616,0.28263481,650.58,648.9,0.3082139]
[1740036890915,0.30742272,650.57,648.9,0.3082139]
[1740036891217,0.28271272,650.56,648.9,0.3082139]
[1740036891413,0.30743217,650.55,648.9,0.3082139]
[1740036891619,0.28271272,650.54,648.9,0.3082139]
[1740036891818,0.30744162,650.53,648.9,0.3082139]
[1740036892021,0.28271272,650.52,648.9,0.3082139]
[1740036892218,0.30745107,650.51,648.9,0.3082139]
[1740036892415,0.28271272,650.5,648.9,0.3082139]
[1740036892612,0.30746052,650.49,648.9,0.3082139]
[1740036892921,0.28271272,650.48,648.9,0.3082139]
[1740036893121,0.30746998,650.47,648.9,0.3082139]
[1740036893418,0.28271272,650.46,648.9,0.3082139]
[1740036893621,0.30747943,650.45,648.9,0.3082139]
[1740036893821,0.28271272,650.44,648.9,0.3082139]
[1740036894617,0.28270998,650.43,648.9,0.3082139]
[1740036895021,0.28270998,650.42,648.9,0.3082139]
[1740036895216,0.30749834,650.41,648.9,0.3082139]
[1740036896924,0.28275538,650.4,648.9,0.3082139]
[1740036897523,0.3075078,650.39,648.9,0.3082139]
[1740036897720,0.28275538,650.38,648.9,0.3082139]
[1740036897919,0.30751725,650.37,648.9,0.3082139]
[1740036898121,0.28275538,650.36,648.9,0.3082139]
[1740036898325,0.30752671,650.35,648.9,0.3082139]
[1740036898525,0.28275538,650.34,648.9,0.3082139]
[1740036899322,0.30753617,650.33,648.9,0.3082139]
[1740036899524,0.28275538,650.32,648.9,0.3082139]
[1740036900024,0.30754563,650.31,648.9,0.3082139]
[1740036900229,0.28275538,650.3,648.9,0.3082139]
[1740036900430,0.30755509,650.29,648.9,0.3082139]
[1740036900630,0.28275538,650.28,648.9,0.3082139]
[1740036900825,0.30756455,650.27,648.9,0.3082139]
[1740036901131,0.28275538,650.26,648.9,0.3082139]
[1740036901327,0.307574,650.25,648.9,0.3082139]
[1740036901530,0.28275538,650.24,648.9,0.3082139]
[1740036901926,0.30758347,650.23,648.9,0.3082139]
[1740036902530,0.28280467,650.22,648.9,0.3082139]
[1740036905935,0.59039287,650.22,648.9,0.3082139]
[1740036906135,0.28280467,650.21,648.9,0.3082139]
[1740036907630,0.3075882,650.22,648.9,0.3082139]
[1740036907835,0.28280725,650.21,648.9,0.3082139]
[1740036912838,0.3075882,650.22,648.9,0.3082139]
[1740036913031,0.28281023,650.21,648.9,0.3082139]
[1740036913234,0.30759766,650.2,648.9,0.3082139]
[1740036913435,0.28284274,650.19,648.9,0.3082139]
[1740036913635,0.30760712,650.18,648.9,0.3082139]
[1740036913836,0.28284274,650.17,648.9,0.3082139]
[1740036914038,0.30761658,650.16,648.9,0.3082139]
[1740036914241,0.28284274,650.15,648.9,0.3082139]
[1740036914537,0.59046405,650.15,648.9,0.3082139]
[1740036914837,0.28284274,650.14,648.9,0.3082139]
[1740036915938,0.30763078,650.13,648.9,0.3082139]
[1740036916135,0.28284274,650.12,648.9,0.3082139]
[1740036916433,0.28285512,650.11,648.9,0.3082139]
[1740036916739,0.28285512,650.1,648.9,0.3082139]
[1740036916938,0.28285512,650.09,648.9,0.3082139]
[1740036917134,0.28285512,650.08,648.9,0.3082139]
[1740036917336,0.28285512,650.07,648.9,0.3082139]
[1740036917639,0.28285512,650.06,648.9,0.3082139]
[1740036917841,0.30763078,650.13,648.9,0.3082139]
[1740036918237,0.28284888,650.12,648.9,0.3082139]
[1740036919639,0.28285132,650.11,648.9,0.3082139]
[1740036919841,0.28285132,650.1,648.9,0.3082139]
[1740036920037,0.28285132,650.12,648.9,0.3082139]
[1740036920241,0.28285132,650.11,648.9,0.3082139]
[1740036920443,0.28285132,650.1,648.9,0.3082139]
[1740036920742,0.28285132,650.09,648.9,0.3082139]
[1740036920943,0.28285132,650.12,648.9,0.3082139]
[1740036921244,0.28285132,650.11,648.9,0.3082139]
[1740036921446,0.28285132,650.1,648.9,0.3082139]
[1740036921745,0.28285132,650.09,648.9,0.3082139]
[1740036921946,0.28285132,650.08,648.9,0.3082139]
[1740036922146,0.28285132,650.07,648.9,0.3082139]
[1740036922339,0.30763078,650.13,648.9,0.3082139]
[1740036922544,0.28285118,650.12,648.9,0.3082139]
[1740036925951,0.28280858,650.11,648.9,0.3082139]
[1740036926139,0.28280858,650.1,648.9,0.3082139]
[1740036926344,0.30763078,650.13,648.9,0.3082139]
[1740036926345,0.28280858,650.09,648.9,0.3082139]
[1740036926547,0.28280858,650.12,648.9,0.3082139]
[1740036926841,0.28279412,650.11,648.9,0.3082139]
[1740036927043,0.28279412,650.1,648.9,0.3082139]
[1740036927248,0.28279412,650.12,648.9,0.3082139]
[1740036927548,0.30763078,650.13,648.9,0.3082139]
[1740036927549,0.28279412,650.11,648.9,0.3082139]
[1740036927842,0.28279412,650.1,648.9,0.3082139]
[1740036928048,0.28279412,650.09,648.9,0.3082139]
[1740036928342,0.28281192,650.08,648.9,0.3082139]
[1740036928545,0.28281192,650.12,648.9,0.3082139]
[1740036928745,0.30763078,650.13,648.9,0.3082139]
[1740036969077,0.30763078,650.13,648.87,0.30822815]
[1740036975679,1.15702844,650.81,648.87,0.30822815]
[1740036975886,0.30731879,650.79,648.87,0.30822815]
[1740036976181,0.28272855,650.78,648.87,0.30822815]
[1740036976383,0.30733296,650.76,648.87,0.30822815]
[1740036976686,0.28272855,650.75,648.87,0.30822815]
[1740036976880,0.30734713,650.73,648.87,0.30822815]
[1740036977084,0.28272855,650.72,648.87,0.30822815]
[1740036977685,0.3073613,650.7,648.87,0.30822815]
[1740036977886,0.28272855,650.69,648.87,0.30822815]
[1740036978287,0.30737075,650.68,648.87,0.30822815]
[1740036978490,0.28272855,650.67,648.87,0.30822815]
[1740036978886,0.30738019,650.66,648.87,0.30822815]
[1740036979283,0.28268604,650.65,648.87,0.30822815]
[1740036979484,0.30738964,650.64,648.87,0.30822815]
[1740036979689,0.28268604,650.63,648.87,0.30822815]
[1740036980491,0.30739909,650.62,648.87,0.30822815]
[1740036980692,0.28268604,650.61,648.87,0.30822815]
[1740036980993,0.30740854,650.6,648.87,0.30822815]
[1740036981185,0.28268604,650.59,648.87,0.30822815]
[1740036981385,0.30741799,650.58,648.87,0.30822815]
[1740036981990,0.28264892,650.57,648.87,0.30822815]
[1740036982691,0.28264844,650.56,648.87,0.30822815]
[1740036982888,0.28264844,650.57,648.87,0.30822815]
[1740036983191,0.28264844,650.56,648.87,0.30822815]
[1740036983398,0.28264844,650.55,648.87,0.30822815]
[1740036983592,0.30741799,650.58,648.87,0.30822815]
[1740036983784,0.28264803,650.57,648.87,0.30822815]
[1740036985292,0.30741799,650.58,648.87,0.30822815]
[1740036985493,0.28265769,650.57,648.87,0.30822815]
[1740036986793,0.59008041,650.57,648.87,0.30822815]
[1740036986993,0.30742744,650.56,648.87,0.30822815]
[1740036987194,0.28267841,650.55,648.87,0.30822815]
[1740036987393,0.30743689,650.54,648.87,0.30822815]
[1740036987693,0.28267841,650.53,648.87,0.30822815]
[1740036987888,0.59012003,650.53,648.87,0.30822815]
[1740036988087,0.59012476,650.52,648.87,0.30822815]
[1740036988394,0.59012948,650.51,648.87,0.30822815]
[1740036988593,0.28267841,650.5,648.87,0.30822815]
[1740036989391,0.30746052,650.49,648.87,0.30822815]
[1740036989592,0.28267841,650.48,648.87,0.30822815]
[1740036990391,0.30746052,650.49,648.87,0.30822815]
[1740036990599,0.28269289,650.48,648.87,0.30822815]
[1740036992296,0.28269721,650.47,648.87,0.30822815]
[1740036992496,0.28269721,650.48,648.87,0.30822815]
[1740036992791,0.28269721,650.47,648.87,0.30822815]
[1740036993095,0.28269721,650.46,648.87,0.30822815]
[1740036993303,0.28269721,650.45,648.87,0.30822815]
[1740036993501,0.28269721,650.44,648.87,0.30822815]
[1740036993692,0.28269721,650.48,648.87,0.30822815]
[1740036993892,0.28269721,650.43,648.87,0.30822815]
[1740036994095,0.28269721,650.42,648.87,0.30822815]
[1740036994298,0.28269721,650.48,648.87,0.30822815]
[1740036994497,0.28269721,650.47,648.87,0.30822815]
[1740036994799,0.28269721,650.46,648.87,0.30822815]
[1740036995098,0.30746052,650.49,648.87,0.30822815]
[1740036995099,0.28269721,650.45,648.87,0.30822815]
[1740036995294,0.28269721,650.48,648.87,0.30822815]
[1740036997298,0.30746052,650.49,648.87,0.30822815]
[1740036997497,0.28268236,650.48,648.87,0.30822815]
[1740036999002,0.28268236,650.48,648.87,1.46600196]
[1740037000695,0.30746052,650.49,648.87,1.46600196]
[1740037000898,0.28267525,650.48,648.87,1.46600196]
[1740037001896,0.28267525,650.48,648.87,0.30822815]
[1740037002495,0.30746998,650.47,648.87,0.30822815]
[1740037002800,0.28267525,650.46,648.87,0.30822815]
[1740037002998,0.30747943,650.45,648.87,0.30822815]
[1740037003200,0.28267525,650.44,648.87,0.30822815]
[1740037003400,0.30748889,650.43,648.87,0.30822815]
[1740037003600,0.28267525,650.42,648.87,0.30822815]
[1740037003896,0.30749834,650.41,648.87,0.30822815]
[1740037004303,0.28272823,650.4,648.87,0.30822815]
[1740037004603,0.3075078,650.39,648.87,0.30822815]
[1740037004799,0.28272823,650.38,648.87,0.30822815]
[1740037004999,0.30751725,650.37,648.87,0.30822815]
[1740037005196,0.28272823,650.36,648.87,0.30822815]
[1740037005400,0.30752671,650.35,648.87,0.30822815]
[1740037005599,0.28272823,650.34,648.87,0.30822815]
[1740037005901,0.30753617,650.33,648.87,0.30822815]
[1740037006203,0.28272823,650.32,648.87,0.30822815]
[1740037006404,0.30754563,650.31,648.87,0.30822815]
[1740037007204,0.28277814,650.3,648.87,0.30822815]
[1740037007403,0.30755509,650.29,648.87,0.30822815]
[1740037007602,0.28277814,650.28,648.87,0.30822815]
[1740037007803,0.30756455,650.27,648.87,0.30822815]
[1740037008301,0.28277534,650.26,648.87,0.30822815]
[1740037008502,0.307574,650.25,648.87,0.30822815]
[1740037008803,0.28277534,650.24,648.87,0.30822815]
[1740037014806,0.307574,650.25,648.87,0.30822815]
[1740037015010,0.28277997,650.24,648.87,0.30822815]
[1740037015812,0.307574,650.25,648.87,0.30822815]
[1740037039431,1.15702844,651.07,648.88,2.20842005]
[1740037039729,0.30719606,651.05,648.98,0.3081759]
[1740037039927,0.28258596,651.04,648.98,0.3081759]
[1740037040129,0.30721022,651.02,648.98,0.3081759]
[1740037040330,0.2825767,651.01,648.98,0.3081759]
[1740037040522,0.30722438,650.99,648.98,0.3081759]
[1740037040727,0.2825767,650.98,648.98,0.3081759]
[1740037040928,0.30723854,650.96,648.98,0.3081759]
[1740037041128,0.2825767,650.95,648.98,0.3081759]
[1740037041328,0.30725269,650.93,648.98,0.3081759]
[1740037041527,0.2825767,650.92,648.98,0.3081759]
[1740037041727,0.30726214,650.91,648.98,0.3081759]
[1740037041932,0.2825767,650.9,648.98,0.3081759]
[1740037042126,0.30727158,650.89,648.98,0.3081759]
[1740037042432,0.2825767,650.88,648.98,0.3081759]
[1740037043029,0.30728102,650.87,648.98,0.3081759]
[1740037043230,0.2825767,650.86,648.98,0.3081759]
[1740037043431,0.30729046,650.85,648.98,0.3081759]
[1740037043627,0.2825767,650.84,648.98,0.3081759]
[1740037043827,0.30729046,650.85,648.98,0.3081759]
[1740037046127,0.28262883,650.84,648.98,0.3081759]
[1740037046725,0.28262883,650.83,648.98,0.3081759]
[1740037046925,0.28262883,650.82,648.98,0.3081759]
[1740037047228,0.28262883,650.81,648.98,0.3081759]
[1740037047432,0.28262883,650.8,648.98,0.3081759]
[1740037047734,0.30731879,650.79,648.98,0.3081759]
[1740037048032,0.28262883,650.78,648.98,0.3081759]
[1740037048231,0.30732824,650.77,648.98,0.3081759]
[1740037048430,0.28262883,650.76,648.98,0.3081759]
[1740037048727,0.30733768,650.75,648.98,0.3081759]
[1740037048932,0.28262883,650.74,648.98,0.3081759]
[1740037049132,0.30734713,650.73,648.98,0.3081759]
[1740037049432,0.28262883,650.72,648.98,0.3081759]
[1740037049633,0.30735657,650.71,648.98,0.3081759]
[1740037049833,0.28262883,650.7,648.98,0.3081759]
[1740037050033,0.30736602,650.69,648.98,0.3081759]
[1740037050234,0.28262883,650.68,648.98,0.3081759]
[1740037050533,0.30737547,650.67,648.98,0.3081759]
[1740037050728,0.28262883,650.66,648.98,0.3081759]
[1740037050934,0.30738492,650.65,648.98,0.3081759]
[1740037051135,0.28262883,650.64,648.98,0.3081759]
[1740037051335,0.30739437,650.63,648.98,0.3081759]
[1740037054636,0.28258234,650.62,648.98,0.3081759]
[1740037054837,0.30739437,650.63,648.98,0.3081759]
[1740037064843,0.28259944,650.62,648.98,0.3081759]
[1740037066645,0.30740382,650.61,648.98,0.3081759]
[1740037066846,0.28259944,650.6,648.98,0.3081759]
[1740037067240,0.30740382,650.61,648.98,0.3081759]
[1740037067443,0.28261703,650.6,648.98,0.3081759]
[1740037071144,0.30741327,650.59,648.98,0.3081759]
[1740037071347,0.30741327,650.59,649.01,1.15777381]
[1740037071348,0.28266949,650.58,649.01,1.15777381]
[1740037071649,0.30742272,650.57,649.02,0.30815691]
[1740037071848,0.28266949,650.56,649.02,0.30815691]
[1740037072050,0.30743217,650.55,649.02,0.30815691]
[1740037072348,0.28266949,650.54,649.02,0.30815691]
[1740037072551,0.30744162,650.53,649.02,0.30815691]
[1740037072751,0.28266949,650.52,649.02,0.30815691]
[1740037072953,0.30745107,650.51,649.02,0.30815691]
[1740037084360,0.30745107,650.51,649.13,1.15777381]
[1740037084660,0.30745107,650.51,649.15,0.3080952]
[1740037086764,0.30745107,650.51,649.15,1.46586901]
[1740037088856,0.30745107,650.51,649.15,0.3080952]
[1740037091865,1.15702844,651.07,649.15,0.3080952]
[1740037092166,0.5897137,651.06,649.15,0.3080952]
[1740037092363,0.58971842,651.05,649.15,0.3080952]
[1740037092561,0.58972314,651.04,649.15,0.3080952]
[1740037092765,0.58972786,651.03,649.15,0.3080952]
[1740037092965,0.58973258,651.02,649.15,0.3080952]
[1740037093269,0.5897373,651.01,649.15,0.3080952]
[1740037093469,0.58974202,651.0,649.15,1.46586901]
[1740037093661,0.58974674,650.99,649.15,1.46586901]
[1740037093862,0.58975146,650.98,649.15,1.46586901]
[1740037094067,0.30723382,650.97,649.15,1.46586901]
[1740037094362,0.28251675,650.96,649.15,1.46586901]
[1740037094666,0.30724325,650.95,649.15,1.46586901]
[1740037094863,0.28251675,650.94,649.15,1.46586901]
[1740037095163,0.30725269,650.93,649.15,1.46586901]
[1740037095367,0.28251675,650.92,649.15,1.46586901]
[1740037095563,0.30726214,650.91,649.15,1.46586901]
[1740037095767,0.28251675,650.9,649.15,1.46586901]
[1740037096068,0.30727158,650.89,649.17,1.15777381]
[1740037096266,0.28251675,650.88,649.19,0.30807621]
[1740037096465,0.30728102,650.87,649.19,0.30807621]
[1740037096664,0.28251675,650.86,649.19,0.30807621]
[1740037096968,0.30729046,650.85,649.19,0.30807621]
[1740037097166,0.28251675,650.84,649.19,0.30807621]
[1740037097367,0.3072999,650.83,649.19,0.30807621]
[1740037097668,0.28251675,650.82,649.19,0.30807621]
[1740037097869,0.30730935,650.81,649.19,0.30807621]
[1740037098067,0.28251675,650.8,649.19,0.30807621]
[1740037098266,0.30731879,650.79,649.19,0.30807621]
[1740037099872,0.28254088,650.78,649.19,0.30807621]
[1740037100070,0.58986439,650.78,649.19,0.30807621]
[1740037100272,0.28254088,650.77,649.19,0.30807621]
[1740037100970,0.30732351,650.78,649.19,0.30807621]
[1740037101275,0.28254319,650.77,649.19,0.30807621]
[1740037101574,0.30732351,650.78,649.19,0.30807621]
[1740037101872,0.28254234,650.77,649.19,0.30807621]
[1740037102771,0.30732351,650.78,649.19,0.30807621]
[1740037102772,0.28254601,650.76,649.19,0.30807621]
[1740037103071,0.30732351,650.78,649.19,0.30807621]
[1740037103372,0.28254411,650.77,649.19,0.30807621]
[1740037105767,0.30733296,650.76,649.19,0.30807621]
[1740037105973,0.28254411,650.75,649.19,0.30807621]
[1740037107175,0.30733296,650.76,649.19,0.30807621]
[1740037124985,0.28260647,650.75,649.19,0.30807621]
[1740037125185,0.30734241,650.74,649.19,0.30807621]
[1740037125389,0.28260647,650.73,649.19,0.30807621]